[Event "*** MasterClass Titled Tuesday Blitz"]
[Site "Chess.com"]
[Date "2017.11.07"]
[Round "8"]
[White "igorkovalenko"]
[Black "GrigorGrigorov"]
[Result "1-0"]
[WhiteElo "2782"]
[BlackElo "2624"]
[TimeControl "180+2"]
[EndTime "15:54:32 PST"]
[Termination "igorkovalenko won by resignation"]

1. e4 {[%clk 0:03:01.9]} 1... c5 {[%clk 0:03:00.2]} 2. Nf3 {[%clk 0:03:02.9]}
2... d6 {[%clk 0:03:01.2]} 3. d4 {[%clk 0:03:04.3]} 3... cxd4 {[%clk 0:03:01.9]}
4. Nxd4 {[%clk 0:03:06.2]} 4... Nf6 {[%clk 0:03:02.7]} 5. Nc3 {[%clk 0:03:07.9]}
5... a6 {[%clk 0:03:03.8]} 6. Be3 {[%clk 0:03:09]} 6... e6 {[%clk 0:03:02.4]} 7.
Be2 {[%clk 0:03:08.8]} 7... Nc6 {[%clk 0:02:59.8]} 8. f4 {[%clk 0:03:09.1]} 8...
Be7 {[%clk 0:03:00.5]} 9. Qd2 {[%clk 0:03:10.6]} 9... Bd7 {[%clk 0:02:55.7]} 10.
O-O-O {[%clk 0:03:09.8]} 10... b5 {[%clk 0:02:50.9]} 11. a3 {[%clk 0:03:10.8]}
11... Rc8 {[%clk 0:02:50.1]} 12. g4 {[%clk 0:03:11.6]} 12... b4 {[%clk
0:02:01.8]} 13. axb4 {[%clk 0:03:10.6]} 13... Nxb4 {[%clk 0:02:02.6]} 14. Kb1
{[%clk 0:02:51.3]} 14... d5 {[%clk 0:01:50.4]} 15. e5 {[%clk 0:02:43.8]} 15...
Ne4 {[%clk 0:01:50.1]} 16. Nxe4 {[%clk 0:02:45.1]} 16... dxe4 {[%clk 0:01:52]}
17. c3 {[%clk 0:02:44.9]} 17... Nd5 {[%clk 0:01:48.6]} 18. f5 {[%clk 0:02:35.1]}
18... Qb6 {[%clk 0:01:35.4]} 19. Nxe6 {[%clk 0:01:52.2]} 19... Qxe3 {[%clk
0:01:22.1]} 20. Nxg7+ {[%clk 0:01:42.5]} 20... Kf8 {[%clk 0:01:18.3]} 21. Qxe3
{[%clk 0:01:43.8]} 21... Nxe3 {[%clk 0:01:14.3]} 22. Rxd7 {[%clk 0:01:45.4]}
22... Kxg7 {[%clk 0:01:07.1]} 23. Rxe7 {[%clk 0:01:46.1]} 23... Rb8 {[%clk
0:00:58.3]} 24. e6 {[%clk 0:01:42.6]} 24... Kf6 {[%clk 0:00:51.9]} 25. Rxf7+
{[%clk 0:01:43.3]} 25... Ke5 {[%clk 0:00:53.5]} 26. e7 {[%clk 0:01:36.2]} 26...
Nd5 {[%clk 0:00:52.4]} 27. Rc1 {[%clk 0:01:35.5]} 27... Rhe8 {[%clk 0:00:48.7]}
28. Rxh7 {[%clk 0:01:35.8]} 28... Nxe7 {[%clk 0:00:44.4]} 29. Bxa6 {[%clk
0:01:30.7]} 29... Nd5 {[%clk 0:00:44.3]} 30. Rh6 {[%clk 0:01:26.3]} 30... Red8
{[%clk 0:00:29]} 31. h3 {[%clk 0:01:20.1]} 31... Ne3 {[%clk 0:00:27.4]} 32. Re6+
{[%clk 0:01:07.9]} 32... Kf4 {[%clk 0:00:27.8]} 33. f6 {[%clk 0:01:09.5]} 33...
Rd2 {[%clk 0:00:28.3]} 34. b4 {[%clk 0:01:10.9]} 34... Rbd8 {[%clk 0:00:21.5]}
35. Bb7 {[%clk 0:01:08.8]} 35... Nd5 {[%clk 0:00:19.6]} 36. f7 {[%clk
0:01:08.9]} 36... Rf2 {[%clk 0:00:16.1]} 37. Bxd5 {[%clk 0:01:08.4]} 1-0

[Event "*** MasterClass Titled Tuesday Blitz"]
[Site "Chess.com"]
[Date "2017.11.07"]
[Round "8"]
[White "krzyzan94"]
[Black "champ2005"]
[Result "1-0"]
[WhiteElo "2599"]
[BlackElo "2445"]
[TimeControl "180+2"]
[EndTime "15:54:38 PST"]
[Termination "krzyzan94 won by resignation"]

1. e4 {[%clk 0:03:01.9]} 1... c6 {[%clk 0:03:00.1]} 2. d4 {[%clk 0:03:02.8]}
2... d5 {[%clk 0:03:01.5]} 3. Nc3 {[%clk 0:03:04.7]} 3... dxe4 {[%clk
0:03:02.3]} 4. Nxe4 {[%clk 0:03:06.6]} 4... Bf5 {[%clk 0:03:03.7]} 5. Ng3 {[%clk
0:03:08.1]} 5... Bg6 {[%clk 0:03:04.9]} 6. h4 {[%clk 0:03:09.4]} 6... h6 {[%clk
0:03:06.2]} 7. N1e2 {[%clk 0:03:10.7]} 7... Nf6 {[%clk 0:03:04.8]} 8. Nf4 {[%clk
0:03:11.5]} 8... Bh7 {[%clk 0:03:06]} 9. Bc4 {[%clk 0:03:13]} 9... e6 {[%clk
0:03:03.8]} 10. c3 {[%clk 0:03:14.4]} 10... Bd6 {[%clk 0:03:04.3]} 11. Nfh5
{[%clk 0:03:15]} 11... O-O {[%clk 0:02:59.6]} 12. Bg5 {[%clk 0:03:08.9]} 12...
Nbd7 {[%clk 0:02:08.1]} 13. Nxf6+ {[%clk 0:02:55.2]} 13... Nxf6 {[%clk
0:02:07.7]} 14. Qf3 {[%clk 0:02:36.6]} 14... Bxg3 {[%clk 0:01:49.7]} 15. fxg3
{[%clk 0:02:07.4]} 15... hxg5 {[%clk 0:01:28]} 16. hxg5 {[%clk 0:02:09.3]} 16...
Ne4 {[%clk 0:01:29.1]} 17. Bd3 {[%clk 0:01:50.9]} 17... f5 {[%clk 0:00:39.6]}
18. Bxe4 {[%clk 0:01:37.6]} 18... Qxg5 {[%clk 0:00:38.7]} 19. Bd3 {[%clk
0:01:30]} 19... Bg6 {[%clk 0:00:38.7]} 20. Qf4 {[%clk 0:01:24.3]} 20... Qxf4
{[%clk 0:00:39.2]} 21. gxf4 {[%clk 0:01:26.2]} 21... Bf7 {[%clk 0:00:38.6]} 22.
O-O-O {[%clk 0:01:26.9]} 22... g6 {[%clk 0:00:39.6]} 23. Kd2 {[%clk 0:01:27.2]}
23... Kg7 {[%clk 0:00:39.6]} 24. Ke3 {[%clk 0:01:29.1]} 24... Rh8 {[%clk
0:00:40.5]} 25. Bc4 {[%clk 0:01:27.8]} 25... Kf6 {[%clk 0:00:40.7]} 26. a4
{[%clk 0:01:27.2]} 26... g5 {[%clk 0:00:41]} 27. fxg5+ {[%clk 0:01:22.5]} 27...
Kxg5 {[%clk 0:00:42.9]} 28. a5 {[%clk 0:01:24.3]} 28... a6 {[%clk 0:00:43.6]}
29. b4 {[%clk 0:01:20.1]} 29... Rag8 {[%clk 0:00:41.9]} 30. Be2 {[%clk
0:01:20.4]} 30... Kf6 {[%clk 0:00:38]} 31. Bf3 {[%clk 0:01:20.9]} 31... Kg7
{[%clk 0:00:32]} 32. Kf4 {[%clk 0:01:21.7]} 32... Kf6 {[%clk 0:00:30.8]} 33. c4
{[%clk 0:01:21.1]} 33... Rd8 {[%clk 0:00:31.6]} 34. Rxh8 {[%clk 0:01:20.4]}
34... Rxh8 {[%clk 0:00:32.3]} 35. b5 {[%clk 0:01:21.5]} 35... cxb5 {[%clk
0:00:19.9]} 36. cxb5 {[%clk 0:01:23.4]} 36... Rb8 {[%clk 0:00:20.1]} 37. b6
{[%clk 0:01:21]} 37... Be8 {[%clk 0:00:19.4]} 38. Rc1 {[%clk 0:01:21.8]} 38...
Rc8 {[%clk 0:00:20.1]} 39. Rxc8 {[%clk 0:01:22.4]} 1-0

[Event "*** MasterClass Titled Tuesday Blitz"]
[Site "Chess.com"]
[Date "2017.11.07"]
[Round "8"]
[White "aa175"]
[Black "Jadeit90"]
[Result "0-1"]
[WhiteElo "1862"]
[BlackElo "2300"]
[TimeControl "180+2"]
[EndTime "15:54:43 PST"]
[Termination "Jadeit90 won by resignation"]

1. e4 {[%clk 0:03:01.9]} 1... g6 {[%clk 0:02:57.3]} 2. d4 {[%clk 0:02:58.9]}
2... Bg7 {[%clk 0:02:58.8]} 3. c3 {[%clk 0:02:55]} 3... c5 {[%clk 0:03:00]} 4.
Be3 {[%clk 0:02:55]} 4... cxd4 {[%clk 0:02:57]} 5. Bxd4 {[%clk 0:02:43.6]} 5...
Nf6 {[%clk 0:02:55.4]} 6. Nd2 {[%clk 0:02:43.5]} 6... O-O {[%clk 0:02:50.7]} 7.
Ngf3 {[%clk 0:02:39.8]} 7... Nc6 {[%clk 0:02:48.8]} 8. Bd3 {[%clk 0:02:03.2]}
8... d5 {[%clk 0:02:33.5]} 9. O-O {[%clk 0:01:52.9]} 9... Nxe4 {[%clk 0:02:10]}
10. Bxg7 {[%clk 0:01:33.6]} 10... Nxf2 {[%clk 0:02:07.4]} 11. Rxf2 {[%clk
0:01:16.3]} 11... Kxg7 {[%clk 0:02:08.7]} 12. Qe2 {[%clk 0:01:16.7]} 12... Re8
{[%clk 0:02:04]} 13. Ne5 {[%clk 0:01:16.9]} 13... Qd6 {[%clk 0:02:02.6]} 14.
Nxc6 {[%clk 0:01:16.7]} 14... bxc6 {[%clk 0:02:03.6]} 15. Raf1 {[%clk
0:01:15.6]} 15... f5 {[%clk 0:02:01.5]} 16. Nf3 {[%clk 0:01:13.5]} 16... e5
{[%clk 0:02:02.6]} 17. Bc2 {[%clk 0:01:07.9]} 17... a5 {[%clk 0:02:02.7]} 18.
Re1 {[%clk 0:00:59.2]} 18... Ba6 {[%clk 0:02:03]} 19. Qd2 {[%clk 0:00:57.6]}
19... Rad8 {[%clk 0:02:01.1]} 20. Bd3 {[%clk 0:00:52.5]} 20... Bc8 {[%clk
0:02:00.9]} 21. Rfe2 {[%clk 0:00:35.8]} 21... e4 {[%clk 0:01:57.6]} 22. Bc2
{[%clk 0:00:18.6]} 22... c5 {[%clk 0:01:56.7]} 23. Ng5 {[%clk 0:00:08]} 23... h6
{[%clk 0:01:55.8]} 24. Nh3 {[%clk 0:00:08.9]} 24... Bb7 {[%clk 0:01:56.8]} 25.
Qf4 {[%clk 0:00:09.8]} 25... d4 {[%clk 0:01:54.5]} 26. Qxd6 {[%clk 0:00:10.1]}
26... Rxd6 {[%clk 0:01:56.4]} 27. cxd4 {[%clk 0:00:08.9]} 27... cxd4 {[%clk
0:01:58.3]} 28. Bb3 {[%clk 0:00:09.4]} 28... d3 {[%clk 0:01:57.1]} 29. Re3
{[%clk 0:00:07.4]} 29... Rc8 {[%clk 0:01:55.5]} 30. Nf4 {[%clk 0:00:05.8]} 30...
Kf6 {[%clk 0:01:52.6]} 31. Rd1 {[%clk 0:00:05]} 31... g5 {[%clk 0:01:52.7]} 32.
Ne2 {[%clk 0:00:05.8]} 32... Ke5 {[%clk 0:01:41.1]} 33. Nc3 {[%clk 0:00:06.4]}
33... f4 {[%clk 0:01:40.2]} 34. Ree1 {[%clk 0:00:07.4]} 34... e3 {[%clk
0:01:41.4]} 35. Nb5 {[%clk 0:00:07.3]} 35... d2 {[%clk 0:01:40]} 36. Nxd6 {[%clk
0:00:08]} 36... dxe1=Q+ {[%clk 0:01:41.1]} 37. Rxe1 {[%clk 0:00:09.3]} 37...
Kxd6 {[%clk 0:01:42.7]} 38. Rd1+ {[%clk 0:00:10.8]} 38... Ke5 {[%clk 0:01:44.2]}
39. g3 {[%clk 0:00:09.9]} 39... f3 {[%clk 0:01:45]} 40. Re1 {[%clk 0:00:08.6]}
40... f2+ {[%clk 0:01:46]} 41. Kf1 {[%clk 0:00:10.5]} 41... fxe1=Q+ {[%clk
0:01:47.8]} 42. Kxe1 {[%clk 0:00:12.4]} 42... Kd4 {[%clk 0:01:49]} 43. Kf1
{[%clk 0:00:14.3]} 43... Ba6+ {[%clk 0:01:49.8]} 44. Kg1 {[%clk 0:00:15.7]}
44... e2 {[%clk 0:01:50.9]} 45. h3 {[%clk 0:00:16.7]} 45... e1=Q+ {[%clk
0:01:51.8]} 46. Kh2 {[%clk 0:00:18.6]} 46... Qf2+ {[%clk 0:01:52.8]} 47. Kh1
{[%clk 0:00:20.5]} 47... Rc1+ {[%clk 0:01:54.1]} 48. Bd1 {[%clk 0:00:02]} 0-1

[Event "*** MasterClass Titled Tuesday Blitz"]
[Site "Chess.com"]
[Date "2017.11.07"]
[Round "8"]
[White "Swarnapuri"]
[Black "Alexander_Donchenko"]
[Result "0-1"]
[WhiteElo "2489"]
[BlackElo "2657"]
[TimeControl "180+2"]
[EndTime "15:54:49 PST"]
[Termination "Alexander_Donchenko won by resignation"]

1. d4 {[%clk 0:03:01.9]} 1... Nf6 {[%clk 0:03:00.8]} 2. Bf4 {[%clk 0:03:02.9]}
2... d5 {[%clk 0:03:01.5]} 3. e3 {[%clk 0:03:04.2]} 3... c5 {[%clk 0:03:02.8]}
4. c3 {[%clk 0:03:05.3]} 4... Nc6 {[%clk 0:03:04.1]} 5. Nd2 {[%clk 0:03:06.8]}
5... Bf5 {[%clk 0:03:05.3]} 6. Ngf3 {[%clk 0:03:08.1]} 6... e6 {[%clk
0:03:06.6]} 7. Qb3 {[%clk 0:03:07.9]} 7... Qb6 {[%clk 0:03:07.8]} 8. Qxb6 {[%clk
0:03:06.8]} 8... axb6 {[%clk 0:03:08.7]} 9. Bb5 {[%clk 0:03:00.5]} 9... Be7
{[%clk 0:02:49.3]} 10. Ne5 {[%clk 0:02:58.1]} 10... Rc8 {[%clk 0:02:50.3]} 11.
Nxc6 {[%clk 0:02:56.5]} 11... bxc6 {[%clk 0:02:52.2]} 12. Ba6 {[%clk 0:02:58.1]}
12... Rd8 {[%clk 0:02:52]} 13. Bc7 {[%clk 0:02:53.8]} 13... Ra8 {[%clk
0:02:52.1]} 14. Bb7 {[%clk 0:02:53.3]} 14... Kd7 {[%clk 0:02:52.9]} 15. Bxb6
{[%clk 0:02:29.9]} 15... Rab8 {[%clk 0:02:50.6]} 16. dxc5 {[%clk 0:02:28.3]}
16... Rxb7 {[%clk 0:02:51.5]} 17. a4 {[%clk 0:02:25.6]} 17... Bd3 {[%clk
0:02:51.6]} 18. Nf3 {[%clk 0:02:19.4]} 18... Be4 {[%clk 0:02:18.4]} 19. Ne5+
{[%clk 0:02:16.7]} 19... Ke8 {[%clk 0:02:19.7]} 20. f3 {[%clk 0:02:15.5]} 20...
Bg6 {[%clk 0:02:20]} 21. a5 {[%clk 0:02:11.7]} 21... Nd7 {[%clk 0:02:18.2]} 22.
a6 {[%clk 0:01:39.9]} 22... Rb8 {[%clk 0:02:15.6]} 23. Nxc6 {[%clk 0:01:25]}
23... Ra8 {[%clk 0:02:16.6]} 24. Nxe7 {[%clk 0:01:19.8]} 24... Kxe7 {[%clk
0:02:15.7]} 25. b4 {[%clk 0:01:21.3]} 25... Bd3 {[%clk 0:02:05.7]} 26. a7 {[%clk
0:01:06.1]} 26... Rhc8 {[%clk 0:02:05.6]} 27. Kd2 {[%clk 0:01:03.5]} 27... Bb5
{[%clk 0:02:06.1]} 28. Ra5 {[%clk 0:01:02.6]} 28... Bc6 {[%clk 0:02:04.1]} 29.
Rb1 {[%clk 0:00:38.4]} 29... Bb7 {[%clk 0:02:02.8]} 30. Rba1 {[%clk 0:00:31.2]}
30... Nxb6 {[%clk 0:01:57.9]} 31. cxb6 {[%clk 0:00:31.9]} 31... Kd6 {[%clk
0:01:58.7]} 32. Rb5 {[%clk 0:00:28.2]} 32... Kc6 {[%clk 0:01:47.9]} 33. Raa5
{[%clk 0:00:28]} 33... Ba6 {[%clk 0:01:33.6]} 34. Rc5+ {[%clk 0:00:16.3]} 34...
Kxb6 {[%clk 0:01:34.2]} 35. Rxc8 {[%clk 0:00:09.8]} 35... Bxc8 {[%clk
0:01:31.4]} 36. c4 {[%clk 0:00:09]} 36... dxc4 {[%clk 0:01:31.8]} 37. Kc3 {[%clk
0:00:10.6]} 37... Rxa7 {[%clk 0:01:33]} 38. Rxa7 {[%clk 0:00:11.3]} 38... Kxa7
{[%clk 0:01:34.9]} 39. Kxc4 {[%clk 0:00:13.2]} 39... Kb6 {[%clk 0:01:36.1]} 40.
f4 {[%clk 0:00:12.6]} 40... Bb7 {[%clk 0:01:36.9]} 41. g4 {[%clk 0:00:13.8]}
41... Bd5+ {[%clk 0:01:38.2]} 42. Kd4 {[%clk 0:00:14.8]} 42... Kb5 {[%clk
0:01:39.5]} 43. f5 {[%clk 0:00:16.3]} 43... Kxb4 {[%clk 0:01:40]} 44. g5 {[%clk
0:00:17]} 44... Kb5 {[%clk 0:01:38.8]} 45. f6 {[%clk 0:00:18.2]} 45... g6 {[%clk
0:01:39.4]} 46. Ke5 {[%clk 0:00:18.8]} 46... Kc6 {[%clk 0:01:40.4]} 47. h4
{[%clk 0:00:17.7]} 47... Bb3 {[%clk 0:01:40.8]} 48. Kf4 {[%clk 0:00:18.4]} 48...
Kd5 {[%clk 0:01:41.6]} 0-1

[Event "*** MasterClass Titled Tuesday Blitz"]
[Site "Chess.com"]
[Date "2017.11.07"]
[Round "8"]
[White "florianschwabeneder"]
[Black "MFBerna"]
[Result "1-0"]
[WhiteElo "2428"]
[BlackElo "2305"]
[TimeControl "180+2"]
[EndTime "15:54:57 PST"]
[Termination "florianschwabeneder won by resignation"]

1. c4 {[%clk 0:03:01.9]} 1... e6 {[%clk 0:03:00.3]} 2. d4 {[%clk 0:03:01.4]}
2... d5 {[%clk 0:03:02.2]} 3. Nf3 {[%clk 0:03:00.6]} 3... Nf6 {[%clk 0:03:03.3]}
4. Nc3 {[%clk 0:03:00.7]} 4... Be7 {[%clk 0:03:04.1]} 5. Bg5 {[%clk 0:02:59.8]}
5... O-O {[%clk 0:03:04.3]} 6. e3 {[%clk 0:03:00.9]} 6... h6 {[%clk 0:03:03.4]}
7. Bxf6 {[%clk 0:02:59.2]} 7... Bxf6 {[%clk 0:03:03.5]} 8. Qc2 {[%clk
0:03:00.3]} 8... c5 {[%clk 0:03:02.7]} 9. O-O-O {[%clk 0:02:53.9]} 9... Qa5
{[%clk 0:02:57.7]} 10. Kb1 {[%clk 0:02:44.3]} 10... Nc6 {[%clk 0:02:53.4]} 11.
cxd5 {[%clk 0:02:34.1]} 11... cxd4 {[%clk 0:02:48.7]} 12. Ne4 {[%clk 0:02:16.7]}
12... Nb4 {[%clk 0:02:18.8]} 13. Nxf6+ {[%clk 0:02:16.3]} 13... gxf6 {[%clk
0:02:20.6]} 14. Qb3 {[%clk 0:02:09.3]} 14... dxe3 {[%clk 0:02:18.6]} 15. d6
{[%clk 0:01:48.8]} 15... Bd7 {[%clk 0:02:10.7]} 16. Qc4 {[%clk 0:01:33.6]} 16...
Rac8 {[%clk 0:02:04.1]} 17. Qg4+ {[%clk 0:01:33]} 17... Kh7 {[%clk 0:01:57.7]}
18. a3 {[%clk 0:01:32]} 18... Nc2 {[%clk 0:01:32.2]} 19. Bd3+ {[%clk 0:00:57.9]}
19... f5 {[%clk 0:01:32.6]} 20. Ng5+ {[%clk 0:00:28.2]} 20... hxg5 {[%clk
0:00:36.6]} 21. Qh5+ {[%clk 0:00:28.5]} 21... Kg7 {[%clk 0:00:35.1]} 22. Qxg5+
{[%clk 0:00:29.7]} 22... Kh7 {[%clk 0:00:34.5]} 23. Bxc2 {[%clk 0:00:30.5]}
23... Rxc2 {[%clk 0:00:23.6]} 24. Qh5+ {[%clk 0:00:25.8]} 24... Kg7 {[%clk
0:00:23.5]} 25. Qg5+ {[%clk 0:00:27.1]} 25... Kh7 {[%clk 0:00:24.6]} 26. Rd4
{[%clk 0:00:12.4]} 26... Qa4 {[%clk 0:00:05.7]} 27. Rh4+ {[%clk 0:00:11]} 27...
Qxh4 {[%clk 0:00:04.6]} 28. Qxh4+ {[%clk 0:00:12.5]} 28... Kg6 {[%clk
0:00:05.7]} 29. Qg3+ {[%clk 0:00:13.6]} 1-0

[Event "*** MasterClass Titled Tuesday Blitz"]
[Site "Chess.com"]
[Date "2017.11.07"]
[Round "8"]
[White "AkshatChandra"]
[Black "PenguinPacks"]
[Result "1-0"]
[WhiteElo "2722"]
[BlackElo "2192"]
[TimeControl "180+2"]
[EndTime "15:54:58 PST"]
[Termination "AkshatChandra won by checkmate"]

1. b3 {[%clk 0:03:01]} 1... d5 {[%clk 0:02:59.8]} 2. Bb2 {[%clk 0:03:00.8]} 2...
c5 {[%clk 0:03:01.3]} 3. Nf3 {[%clk 0:03:01.8]} 3... f6 {[%clk 0:03:02.7]} 4. e3
{[%clk 0:03:03.6]} 4... e5 {[%clk 0:03:03.7]} 5. d3 {[%clk 0:02:55.3]} 5... Nc6
{[%clk 0:03:03.7]} 6. g3 {[%clk 0:02:55.2]} 6... Be6 {[%clk 0:03:03.7]} 7. Bg2
{[%clk 0:02:56.4]} 7... Qd7 {[%clk 0:02:59.9]} 8. h3 {[%clk 0:02:57.3]} 8... Bd6
{[%clk 0:02:52.8]} 9. Nbd2 {[%clk 0:02:58.1]} 9... Nge7 {[%clk 0:02:47.4]} 10.
a3 {[%clk 0:02:59.1]} 10... O-O {[%clk 0:02:19.8]} 11. e4 {[%clk 0:02:42.3]}
11... d4 {[%clk 0:02:15.1]} 12. Nc4 {[%clk 0:02:41.9]} 12... Bc7 {[%clk
0:02:15.2]} 13. a4 {[%clk 0:02:42.6]} 13... b6 {[%clk 0:02:14.3]} 14. Kf1 {[%clk
0:02:34.9]} 14... a6 {[%clk 0:02:08.5]} 15. Kg1 {[%clk 0:02:36.1]} 15... b5
{[%clk 0:02:09.8]} 16. Ncd2 {[%clk 0:02:37.7]} 16... Ng6 {[%clk 0:01:48.8]} 17.
Kh2 {[%clk 0:02:29]} 17... Nce7 {[%clk 0:01:00.7]} 18. Rf1 {[%clk 0:02:23.8]}
18... h5 {[%clk 0:01:01.5]} 19. h4 {[%clk 0:01:57.5]} 19... Bg4 {[%clk
0:00:59.8]} 20. Qc1 {[%clk 0:01:53.1]} 20... b4 {[%clk 0:00:51.3]} 21. Nc4
{[%clk 0:01:51.3]} 21... f5 {[%clk 0:00:46.6]} 22. exf5 {[%clk 0:01:47.6]} 22...
Nxf5 {[%clk 0:00:29.2]} 23. Ng5 {[%clk 0:01:41.2]} 23... Rae8 {[%clk 0:00:26.8]}
24. Ne4 {[%clk 0:01:38.2]} 24... Bd8 {[%clk 0:00:24.7]} 25. f3 {[%clk
0:01:36.3]} 25... Nh6 {[%clk 0:00:17.5]} 26. fxg4 {[%clk 0:01:34.9]} 26... Nxg4+
{[%clk 0:00:16.5]} 27. Kg1 {[%clk 0:01:36.4]} 27... Rxf1+ {[%clk 0:00:17.6]} 28.
Qxf1 {[%clk 0:01:37.2]} 28... Rf8 {[%clk 0:00:18.9]} 29. Qe2 {[%clk 0:01:38.8]}
29... Rf5 {[%clk 0:00:11.9]} 30. Bh3 {[%clk 0:01:36.7]} 30... Bxh4 {[%clk
0:00:03.4]} 31. Bxg4 {[%clk 0:01:37.2]} 31... hxg4 {[%clk 0:00:04.6]} 32. gxh4
{[%clk 0:01:21.3]} 32... Nxh4 {[%clk 0:00:06.5]} 33. Rf1 {[%clk 0:01:10.9]}
33... Nf3+ {[%clk 0:00:07.5]} 34. Kg2 {[%clk 0:01:05.5]} 34... Qf7 {[%clk
0:00:06.1]} 35. Ng3 {[%clk 0:01:00.1]} 35... Rf4 {[%clk 0:00:05.9]} 36. Nxe5
{[%clk 0:00:54.6]} 36... Nxe5 {[%clk 0:00:07.8]} 37. Qxe5 {[%clk 0:00:54.4]}
37... Rxf1 {[%clk 0:00:08.3]} 38. Nxf1 {[%clk 0:00:56.3]} 38... Qf3+ {[%clk
0:00:09.6]} 39. Kg1 {[%clk 0:00:57]} 39... Qh3 {[%clk 0:00:10.4]} 40. Qxc5
{[%clk 0:00:49.9]} 40... g3 {[%clk 0:00:11.6]} 41. Qxd4 {[%clk 0:00:51.5]} 41...
g2 {[%clk 0:00:11.6]} 42. Qxg7# {[%clk 0:00:52.1]} 1-0

[Event "*** MasterClass Titled Tuesday Blitz"]
[Site "Chess.com"]
[Date "2017.11.07"]
[Round "8"]
[White "wanyaland"]
[Black "tango_argentino"]
[Result "0-1"]
[WhiteElo "2268"]
[BlackElo "2509"]
[TimeControl "180+2"]
[EndTime "15:55:05 PST"]
[Termination "tango_argentino won by resignation"]

1. Nf3 {[%clk 0:03:01.9]} 1... Nf6 {[%clk 0:03:00.3]} 2. g3 {[%clk 0:03:02.3]}
2... g6 {[%clk 0:03:01.6]} 3. d4 {[%clk 0:03:03.3]} 3... Bg7 {[%clk 0:03:02.7]}
4. c4 {[%clk 0:03:04.9]} 4... O-O {[%clk 0:03:03.7]} 5. Bg2 {[%clk 0:03:06.8]}
5... d6 {[%clk 0:03:05.1]} 6. O-O {[%clk 0:03:08.3]} 6... Nc6 {[%clk 0:03:05.7]}
7. Nc3 {[%clk 0:03:05.6]} 7... e5 {[%clk 0:03:06.7]} 8. d5 {[%clk 0:03:05.5]}
8... Nb8 {[%clk 0:03:07.7]} 9. e4 {[%clk 0:03:05.6]} 9... a5 {[%clk 0:03:08.5]}
10. h3 {[%clk 0:03:05.1]} 10... Na6 {[%clk 0:03:09.5]} 11. Re1 {[%clk 0:03:02]}
11... Nd7 {[%clk 0:03:09.8]} 12. b3 {[%clk 0:03:00.5]} 12... Ndc5 {[%clk
0:03:09.8]} 13. Bd2 {[%clk 0:02:57.4]} 13... f5 {[%clk 0:03:02.1]} 14. Ng5
{[%clk 0:02:51.4]} 14... f4 {[%clk 0:03:01.1]} 15. gxf4 {[%clk 0:02:46]} 15...
exf4 {[%clk 0:03:02.1]} 16. Nf3 {[%clk 0:02:47.3]} 16... Nd3 {[%clk 0:02:59.7]}
17. Rf1 {[%clk 0:02:44.4]} 17... Nac5 {[%clk 0:02:45.6]} 18. Qc2 {[%clk
0:02:43.4]} 18... Ne5 {[%clk 0:02:45.1]} 19. Nxe5 {[%clk 0:02:34.4]} 19... Bxe5
{[%clk 0:02:47]} 20. f3 {[%clk 0:02:34.6]} 20... Bd4+ {[%clk 0:02:47]} 21. Kh1
{[%clk 0:02:33.8]} 21... Bxh3 {[%clk 0:02:44.3]} 22. Be1 {[%clk 0:01:42.1]}
22... Bd7 {[%clk 0:02:36.6]} 23. Rd1 {[%clk 0:01:35.8]} 23... Be3 {[%clk
0:02:18.3]} 24. Bf2 {[%clk 0:01:31.2]} 24... Qg5 {[%clk 0:02:14.9]} 25. Qe2
{[%clk 0:01:10]} 25... Bxf2 {[%clk 0:01:35.5]} 26. Qxf2 {[%clk 0:01:10.2]} 26...
h5 {[%clk 0:01:37]} 27. Rg1 {[%clk 0:01:06.7]} 27... Qe5 {[%clk 0:01:37.3]} 28.
Ne2 {[%clk 0:00:58.1]} 28... g5 {[%clk 0:01:38.3]} 29. Nd4 {[%clk 0:00:57]}
29... Kf7 {[%clk 0:01:37]} 30. Bf1 {[%clk 0:00:53.4]} 30... Qf6 {[%clk
0:01:22.7]} 31. Qh2 {[%clk 0:00:48.8]} 31... g4 {[%clk 0:01:18]} 32. e5 {[%clk
0:00:19.2]} 32... dxe5 {[%clk 0:01:10.6]} 33. Nb5 {[%clk 0:00:16.3]} 33... Bxb5
{[%clk 0:01:09.7]} 34. cxb5 {[%clk 0:00:16.5]} 34... g3 {[%clk 0:01:07]} 35. Qh3
{[%clk 0:00:14.9]} 35... Ke7 {[%clk 0:01:08.3]} 36. Rc1 {[%clk 0:00:13.2]} 36...
b6 {[%clk 0:01:07.9]} 37. Be2 {[%clk 0:00:10.6]} 37... Qf5 {[%clk 0:01:08.9]}
38. Qh4+ {[%clk 0:00:09.9]} 38... Kd6 {[%clk 0:01:10.3]} 39. Kg2 {[%clk
0:00:09.9]} 39... e4 {[%clk 0:01:06.5]} 40. fxe4 {[%clk 0:00:07.9]} 40... f3+
{[%clk 0:01:07.6]} 0-1

[Event "*** MasterClass Titled Tuesday Blitz"]
[Site "Chess.com"]
[Date "2017.11.07"]
[Round "8"]
[White "AttilaTurzo"]
[Black "lukas_111111"]
[Result "0-1"]
[WhiteElo "2371"]
[BlackElo "2372"]
[TimeControl "180+2"]
[EndTime "15:55:08 PST"]
[Termination "lukas_111111 won on time"]

1. d4 {[%clk 0:03:01.9]} 1... Nf6 {[%clk 0:02:58.7]} 2. Bf4 {[%clk 0:03:02.7]}
2... e6 {[%clk 0:02:57.6]} 3. e3 {[%clk 0:03:03.9]} 3... d5 {[%clk 0:02:57.4]}
4. Nf3 {[%clk 0:03:03.9]} 4... Bd6 {[%clk 0:02:58.4]} 5. Bg3 {[%clk 0:03:04.5]}
5... O-O {[%clk 0:02:58.8]} 6. c3 {[%clk 0:03:04.4]} 6... c5 {[%clk 0:02:55.6]}
7. Nbd2 {[%clk 0:03:04.6]} 7... Nc6 {[%clk 0:02:56.5]} 8. Bd3 {[%clk 0:03:04.3]}
8... b6 {[%clk 0:02:52.9]} 9. Qe2 {[%clk 0:03:04.4]} 9... Bb7 {[%clk 0:02:53.7]}
10. Rd1 {[%clk 0:03:05]} 10... c4 {[%clk 0:02:51.3]} 11. Bc2 {[%clk 0:03:02.8]}
11... b5 {[%clk 0:02:52.3]} 12. e4 {[%clk 0:03:02.8]} 12... Be7 {[%clk
0:02:52.9]} 13. O-O {[%clk 0:02:54.8]} 13... b4 {[%clk 0:02:46.9]} 14. Ne5
{[%clk 0:02:43.1]} 14... bxc3 {[%clk 0:02:43.5]} 15. bxc3 {[%clk 0:02:43.5]}
15... Qa5 {[%clk 0:02:27.2]} 16. exd5 {[%clk 0:02:11.7]} 16... Nxd5 {[%clk
0:01:42.2]} 17. Ndxc4 {[%clk 0:01:53.2]} 17... Qxc3 {[%clk 0:01:41.7]} 18. Nxc6
{[%clk 0:01:20.4]} 18... Bxc6 {[%clk 0:01:41.4]} 19. Ne5 {[%clk 0:01:12.4]}
19... Bb7 {[%clk 0:01:28.3]} 20. Bb1 {[%clk 0:00:49.3]} 20... g6 {[%clk
0:01:27.2]} 21. h4 {[%clk 0:00:48.6]} 21... a5 {[%clk 0:01:21.8]} 22. Rc1 {[%clk
0:00:33.5]} 22... Qxd4 {[%clk 0:01:19.5]} 23. Rfd1 {[%clk 0:00:34.7]} 23... Qb4
{[%clk 0:01:08.5]} 24. Qd3 {[%clk 0:00:13.3]} 24... Nf4 {[%clk 0:01:05.6]} 25.
Qe3 {[%clk 0:00:11.4]} 25... Nxg2 {[%clk 0:01:02.2]} 26. Qh6 {[%clk 0:00:11.5]}
26... Nxh4 {[%clk 0:00:59.3]} 27. Rc4 {[%clk 0:00:12.5]} 27... Nf3+ {[%clk
0:00:58.1]} 28. Nxf3 {[%clk 0:00:06.8]} 28... Qxc4 {[%clk 0:00:58.9]} 29. Be5
{[%clk 0:00:05.7]} 29... Qg4+ {[%clk 0:00:44.5]} 30. Kf1 {[%clk 0:00:06.6]}
30... f6 {[%clk 0:00:44.1]} 31. Rd7 {[%clk 0:00:02.6]} 31... Ba6+ {[%clk
0:00:30.4]} 32. Ke1 {[%clk 0:00:03.2]} 32... Qxf3 {[%clk 0:00:30.8]} 0-1